fUSD/lending_fUSD_20250312
["ID","MTS","AMOUNT","RATE_DAILY","PERIOD"]
[355978015,1741757441248,-500.0,9.998e-05,2]
[355978016,1741757441258,-1070.83,9.998e-05,2]
[355978017,1741757441266,-500.0,9.998e-05,2]
[355978018,1741757441276,-500.0,9.998e-05,2]
[355978019,1741757441285,-1400.22,9.998e-05,2]
[355978020,1741757441295,-525.29,9.998e-05,2]
[355978021,1741757441303,-500.0,9.998e-05,2]
[355978022,1741757441313,-500.0,9.998e-05,2]
[355978023,1741757441323,-504.27517875,9.998e-05,2]
[355978024,1741757441332,-500.0,9.998e-05,2]
[355978025,1741757441341,-500.0,9.998e-05,2]
[355978026,1741757441351,-500.0,9.998e-05,2]
[355978027,1741757441360,-764.12,9.998e-05,2]
[355978028,1741757441369,-500.0,9.998e-05,2]
[355978029,1741757441379,-500.0,9.998e-05,2]
[355978030,1741757441388,-1511.15,9.998e-05,2]
[355978031,1741757441397,-500.0,9.998e-05,2]
[355978032,1741757441406,-3338.66,9.998e-05,2]
[355978033,1741757441415,-500.0,9.998e-05,2]
[355978034,1741757441424,-500.0,9.998e-05,2]
[355978035,1741757441434,-500.0,9.998e-05,2]
[355978036,1741757441443,-500.0,9.998e-05,2]
[355978037,1741757441452,-500.0,9.998e-05,2]
[355978038,1741757441462,-362.04000336,9.998e-05,2]
[355978039,1741757441471,-6878.35,9.998e-05,2]
[355978040,1741757441480,-500.0,9.998e-05,2]
[355978041,1741757441490,-500.0,9.998e-05,2]
[355978042,1741757441499,-882.26,9.998e-05,2]
[355978043,1741757441509,-500.0,9.998e-05,2]
[355978044,1741757441518,-500.0,9.998e-05,2]
[355978045,1741757441527,-1834.71,9.998e-05,2]
[355978046,1741757441536,-500.0,9.998e-05,2]
[355978047,1741757441546,-597.94,9.998e-05,2]
[355978048,1741757441555,-500.0,9.998e-05,2]
[355978049,1741757441564,-1082.31,9.998e-05,2]
[355978050,1741757441574,-537.09,9.998e-05,2]
[355978051,1741757441583,-1298.15,9.998e-05,2]
[355978052,1741757441592,-500.0,9.999e-05,2]
[355978053,1741757441601,-500.0,9.999e-05,2]
[355978054,1741757441610,-503.2,9.999e-05,2]
[355978055,1741757441619,-180.66,9.999e-05,2]
[355978056,1741757441629,-500.0,9.999e-05,2]
[355978057,1741757441638,-500.0,9.999e-05,2]
[355978058,1741757441647,-500.0,9.999e-05,2]
[355978059,1741757441657,-500.0,9.999e-05,2]
[355978060,1741757441666,-500.0,9.999e-05,2]
[355978061,1741757441676,-504.54,9.999e-05,2]
[355978062,1741757441685,-507.68,9.999e-05,2]
[355978063,1741757441694,-406.12971461,9.999e-05,2]
[355978064,1741757441704,-500.0,9.999e-05,2]
[355978065,1741757441713,-520.75,9.999e-05,2]
[355978066,1741757441722,-500.0,9.999e-05,2]
[355978067,1741757441732,-500.0,9.999e-05,2]
[355978068,1741757441741,-500.0,9.999e-05,2]
[355978069,1741757441751,-500.0,9.999e-05,2]
[355978070,1741757441760,-500.0,9.999e-05,2]
[355978071,1741757441769,-500.0,9.999e-05,2]
[355978072,1741757441779,-500.0,9.999e-05,2]
[355978073,1741757441788,-500.0,9.999e-05,2]
[355978074,1741757441797,-336.27607752,9.999e-05,2]
[355978075,1741757441807,-500.0,9.999e-05,2]
[355978076,1741757441816,-549.37,9.999e-05,2]
[355978077,1741757441825,-609.77,9.999e-05,2]
[355978078,1741757441835,-500.0,9.999e-05,2]
[355978079,1741757441844,-500.0,9.999e-05,2]
[355978080,1741757441853,-500.0,9.999e-05,2]
[355978081,1741757441862,-500.0,9.999e-05,2]
[355978082,1741757441871,-500.0,9.999e-05,2]
[355978083,1741757441881,-500.0,9.999e-05,2]
[355978084,1741757441890,-500.0,9.999e-05,2]
[355978085,1741757441899,-500.0,9.999e-05,2]
[355978086,1741757441908,-500.0,9.999e-05,2]
[355978087,1741757441917,-500.0,9.999e-05,2]
[355978088,1741757441926,-532.29,9.999e-05,2]
[355978089,1741757441936,-500.0,9.999e-05,2]
[355978090,1741757441945,-500.0,9.999e-05,2]
[355978091,1741757441954,-500.0,9.999e-05,2]
[355978092,1741757441963,-500.0,9.999e-05,2]
[355978093,1741757441972,-500.0,9.999e-05,2]
[355978094,1741757441981,-500.0,9.999e-05,2]
[355978095,1741757441990,-500.0,9.999e-05,2]
[355978096,1741757442000,-500.0,9.999e-05,2]
[355978097,1741757442009,-500.0,9.999e-05,2]
[355978098,1741757442018,-500.0,9.999e-05,2]
[355978099,1741757442027,-500.0,9.999e-05,2]
[355978100,1741757442036,-500.0,9.999e-05,2]
[355978101,1741757442045,-515.86,9.999e-05,2]
[355978102,1741757442054,-500.0,9.999e-05,2]
[355978103,1741757442063,-506.17,9.999e-05,2]
[355978104,1741757442076,-500.0,9.999e-05,2]
[355978105,1741757442085,-500.0,9.999e-05,2]
[355978106,1741757442095,-371.30866467,9.999e-05,2]
[355978107,1741757442104,-500.0,9.999e-05,2]
[355978108,1741757442114,-500.0,9.999e-05,2]
[355978109,1741757442123,-601.8,9.999e-05,2]
[355978110,1741757442132,-500.0,9.999e-05,2]
[355978111,1741757442141,-500.0,9.999e-05,2]
[355978112,1741757442151,-500.0,9.999e-05,2]
[355978113,1741757442161,-1432.63,9.999e-05,2]
[355978114,1741757442170,-500.0,9.999e-05,2]
[355978115,1741757442180,-500.0,9.999e-05,2]
[355978116,1741757442189,-590.34,9.999e-05,2]
[355978117,1741757442198,-500.0,9.999e-05,2]
[355978118,1741757442208,-500.0,9.999e-05,2]
[355978119,1741757442217,-500.0,9.999e-05,2]
[355978120,1741757442226,-500.0,9.999e-05,2]
[355978121,1741757442236,-500.0,9.999e-05,2]
[355978122,1741757442245,-500.0,9.999e-05,2]
[355978123,1741757442254,-500.0,9.999e-05,2]
[355978124,1741757442263,-563.48,9.999e-05,2]
[355978125,1741757442273,-500.0,9.999e-05,2]
[355978126,1741757442282,-500.0,9.999e-05,2]
[355978127,1741757442291,-654.44,9.999e-05,2]
[355978128,1741757442300,-500.0,9.999e-05,2]
[355978129,1741757442309,-500.0,9.999e-05,2]
[355978130,1741757442318,-500.0,9.999e-05,2]
[355978131,1741757442328,-500.0,9.999e-05,2]
[355978132,1741757442337,-500.0,9.999e-05,2]
[355978134,1741757442346,-575.41,9.999e-05,2]
[355978136,1741757442356,-500.0,9.999e-05,2]
[355978137,1741757442365,-500.0,9.999e-05,2]
[355978138,1741757442375,-500.0,9.999e-05,2]
[355978139,1741757442384,-517.39,9.999e-05,2]
[355978140,1741757442393,-500.0,9.999e-05,2]
[355978141,1741757442403,-500.0,9.999e-05,2]
[355978142,1741757442413,-500.0,9.999e-05,2]
[355978143,1741757442422,-500.0,9.999e-05,2]
[355978144,1741757442431,-500.0,9.999e-05,2]
[355978145,1741757442441,-500.0,9.999e-05,2]
[355978146,1741757442451,-500.0,9.999e-05,2]
[355978147,1741757442460,-500.0,9.999e-05,2]
[355978148,1741757442470,-500.0,9.999e-05,2]
[355978149,1741757442479,-500.0,9.999e-05,2]
[355978150,1741757442489,-500.0,9.999e-05,2]
[355978151,1741757442498,-500.0,9.999e-05,2]
[355978152,1741757442507,-4710.03,9.999e-05,2]
[355978153,1741757442517,-500.0,9.999e-05,2]
[355978155,1741757442526,-655.03,9.999e-05,2]
[355978156,1741757442535,-500.0,9.999e-05,2]
[355978157,1741757442544,-500.0,9.999e-05,2]
[355978158,1741757442554,-500.0,9.999e-05,2]
[355978160,1741757442563,-500.0,9.999e-05,2]
[355978162,1741757442572,-500.0,9.999e-05,2]
[355978164,1741757442581,-799.62,9.999e-05,2]
[355978165,1741757442591,-500.0,9.999e-05,2]
[355978166,1741757442600,-500.0,9.999e-05,2]
[355978168,1741757442609,-1054.25,9.999e-05,2]
[355978169,1741757442618,-1172.35,9.999e-05,2]
[355978170,1741757442627,-956.59,9.999e-05,2]
[355978171,1741757442636,-500.0,9.999e-05,2]
[355978172,1741757442645,-548.58,9.999e-05,2]
[355978173,1741757442655,-971.94,9.999e-05,2]
[355978174,1741757442664,-500.0,9.999e-05,2]
[355978175,1741757442674,-500.0,9.999e-05,2]
[355978176,1741757442684,-1030.38,9.999e-05,2]
[355978177,1741757442693,-500.0,9.999e-05,2]
[355978178,1741757442703,-500.0,9.999e-05,2]
[355978179,1741757442712,-536.04,9.999e-05,2]
[355978180,1741757442721,-500.0,9.999e-05,2]
[355978181,1741757442730,-500.0,9.999e-05,2]
[355978182,1741757442739,-500.0,9.999e-05,2]
[355978183,1741757442748,-500.0,9.999e-05,2]
[355978184,1741757442757,-500.0,9.999e-05,2]
[355978185,1741757442766,-500.0,9.999e-05,2]
[355978186,1741757442775,-500.0,9.999e-05,2]
[355978187,1741757442784,-500.0,9.999e-05,2]
[355978188,1741757442794,-500.0,9.999e-05,2]
[355978189,1741757442803,-500.0,9.999e-05,2]
[355978190,1741757442812,-500.0,9.999e-05,2]
[355978191,1741757442822,-500.0,9.999e-05,2]
[355978192,1741757442831,-500.0,9.999e-05,2]
[355978193,1741757442841,-1085.0,0.0001,2]
[355978194,1741757442850,-4768.65181076,0.0001,2]
[355978195,1741757442859,-1509199.11649648,0.0001,2]
[355978204,1741757443386,-937.57728914,0.0001,2]
[355978205,1741757443397,-14024.51226266,0.0001,2]
[355978206,1741757443416,-6408.61258349,0.0001,2]
[355978207,1741757443427,-766.4,0.0001,2]
[355978208,1741757443875,151.46,8.847e-05,2]
[355978209,1741757443888,-500.0,9.998e-05,2]
[355978210,1741757443898,-18007.41804218,0.0001,2]
[355978211,1741757443909,-9103.5,0.0001,2]
[355978212,1741757443951,151.46,8.881e-05,2]
[355978213,1741757445579,-151.46,8.915e-05,2]
[355978214,1741757445588,-151.46,8.949e-05,2]
[355978215,1741757445598,-151.46,8.983e-05,2]
[355978216,1741757445611,-151.46,9.017e-05,2]
[355978217,1741757445621,-151.46,9.051e-05,2]
[355978218,1741757445630,-151.46,9.085e-05,2]
[355978219,1741757445640,-151.46,9.119e-05,2]
[355978220,1741757445650,-151.46,9.153e-05,2]
[355978221,1741757445660,-151.46,9.187e-05,2]
[355978222,1741757445670,-151.46,9.221e-05,2]
[355978223,1741757445679,-151.46,9.255e-05,2]
[355978224,1741757445691,-151.46,9.289e-05,2]
[355978225,1741757445701,-98194.2218974,0.0001,2]
[355978226,1741757445719,-500.0,0.0001,2]
[355978227,1741757445730,-827.8,0.0001,2]
[355978228,1741757445760,-1543.49445055,0.0001,2]
[355978229,1741757445772,-818.19641601,0.0001,2]
[355978230,1741757445826,-8198.10359868,0.0001,2]
[355978231,1741757649112,1066.1,8.219e-05,2]
[355978234,1741757914927,-1000.0,9.11e-05,2]
[355978235,1741757914950,-250.0,9.153e-05,2]
[355978236,1741757914973,-300.0,9.199e-05,2]
[355978237,1741757914996,-276.5665,9.2e-05,2]
[355978238,1741757915018,-594.6906,9.2e-05,2]
[355978239,1741757915040,-5621.7265,9.2e-05,2]
[355978244,1741758045524,165.81,9.158e-05,2]
[355978245,1741758064496,2238.57,0.0002,120]
[355978246,1741758275381,200.0,9.107e-05,2]
[355978292,1741758455828,214.92,9.067e-05,2]
[355978309,1741758510284,550.0,9e-05,2]
[355978310,1741758523334,151.46,9.067e-05,2]
[355978311,1741758523555,151.46,9.18e-05,2]
[355978317,1741758631802,-151.46,9.294e-05,2]
[355978318,1741758631811,-150.0,9.298e-05,2]
[355978319,1741758631820,-109.066,9.299e-05,2]
[355978320,1741758632025,-816.510335,9.299e-05,2]
[355978321,1741758632034,-150.942088,9.299e-05,2]
[355978322,1741758632044,-154.034078,9.299e-05,2]
[355978323,1741758632054,-153.003788,9.299e-05,2]
[355978324,1741758632063,-500.0,9.299e-05,2]
[355978325,1741758632073,-325.43764234,9.299e-05,2]
[355978326,1741758632082,-537.09,9.299e-05,2]
[355978327,1741758632091,-656.57,9.299e-05,2]
[355978328,1741758632101,-500.0,9.299e-05,2]
[355978329,1741758632110,-500.0,9.299e-05,2]
[355978330,1741758632119,-500.0,9.299e-05,2]
[355978331,1741758632128,-549.09104782,9.299e-05,2]
[355978332,1741758632137,-520.44,9.299e-05,2]
[355978333,1741758632147,-585.49,9.299e-05,2]
[355978334,1741758632156,-500.0,9.299e-05,2]
[355978335,1741758632165,-573.03,9.299e-05,2]
[355978336,1741758632174,-500.0,9.299e-05,2]
[355978337,1741758632184,-562.0,9.299e-05,2]
[355978338,1741758632193,-500.0,9.299e-05,2]
[355978340,1741758632203,-673.32,9.299e-05,2]
[355978342,1741758632212,-545.38,9.299e-05,2]
[355978344,1741758632221,-620.25,9.299e-05,2]
[355978346,1741758632230,-500.0,9.299e-05,2]
[355978347,1741758632239,-538.42,9.299e-05,2]
[355978349,1741758632249,-500.0,9.299e-05,2]
[355978351,1741758632258,-500.0,9.299e-05,2]
[355978353,1741758632270,-500.0,9.299e-05,2]
[355978354,1741758632279,-500.0,9.299e-05,2]
[355978355,1741758632288,-500.0,9.299e-05,2]
[355978356,1741758632297,-500.0,9.299e-05,2]
[355978357,1741758632306,-500.0,9.299e-05,2]
[355978358,1741758632316,-500.0,9.299e-05,2]
[355978359,1741758632325,-500.0,9.299e-05,2]
[355978360,1741758632334,-526.36,9.299e-05,2]
[355978361,1741758632343,-500.0,9.299e-05,2]
[355978362,1741758632353,-593.04,9.299e-05,2]
[355978363,1741758632362,-500.0,9.299e-05,2]
[355978364,1741758632371,-500.0,9.299e-05,2]
[355978365,1741758632380,-500.0,9.299e-05,2]
[355978366,1741758632390,-500.0,9.299e-05,2]
[355978367,1741758632399,-626.75,9.299e-05,2]
[355978368,1741758632408,-500.0,9.299e-05,2]
[355978369,1741758632418,-620.29,9.299e-05,2]
[355978370,1741758632427,-500.0,9.299e-05,2]
[355978371,1741758632437,-500.0,9.299e-05,2]
[355978372,1741758632450,-500.0,9.299e-05,2]
[355978373,1741758632459,-500.0,9.299e-05,2]
[355978375,1741758632468,-500.0,9.299e-05,2]
[355978377,1741758632477,-500.0,9.299e-05,2]
[355978379,1741758632487,-500.0,9.299e-05,2]
[355978380,1741758632496,-549.45,9.299e-05,2]
[355978381,1741758632505,-500.0,9.299e-05,2]
[355978382,1741758632515,-605.17,9.299e-05,2]
[355978384,1741758632526,-500.0,9.299e-05,2]
[355978386,1741758632535,-579.74,9.299e-05,2]
[355978388,1741758632544,-663.16,9.299e-05,2]
[355978390,1741758632553,-500.0,9.299e-05,2]
[355978392,1741758632562,-500.0,9.299e-05,2]
[355978394,1741758632571,-500.0,9.299e-05,2]
[355978396,1741758632581,-1208.24,9.299e-05,2]
[355978398,1741758632589,-902.01,9.299e-05,2]
[355978400,1741758632599,-6878.35,9.299e-05,2]
[355978402,1741758632607,-500.0,9.299e-05,2]
[355978404,1741758632617,-500.0,9.299e-05,2]
[355978406,1741758632627,-1162.56,9.299e-05,2]
[355978408,1741758632636,-1298.15,9.299e-05,2]
[355978409,1741758632646,-500.0,9.299e-05,2]
[355978410,1741758632655,-500.0,9.299e-05,2]
[355978411,1741758632664,-500.0,9.299e-05,2]
[355978412,1741758632674,-500.0,9.299e-05,2]
[355978413,1741758632683,-1086.58,9.299e-05,2]
[355978414,1741758632692,-862.73,9.299e-05,2]
[355978415,1741758632701,-500.0,9.299e-05,2]
[355978416,1741758632711,-500.0,9.299e-05,2]
[355978417,1741758632720,-1463.39,9.299e-05,2]
[355978418,1741758632729,-4710.03,9.299e-05,2]
[355978419,1741758632739,-500.0,9.299e-05,2]
[355978420,1741758632748,-526.07,9.299e-05,2]
[355978421,1741758632757,-500.0,9.299e-05,2]
[355978422,1741758632768,-500.0,9.299e-05,2]
[355978423,1741758632777,-799.62,9.299e-05,2]
[355978424,1741758632786,-1216.96,9.299e-05,2]
[355978425,1741758632795,-858.17,9.299e-05,2]
[355978426,1741758632805,-500.0,9.299e-05,2]
[355978427,1741758632814,-288.40931397,9.299e-05,2]
[355978428,1741758632824,-500.0,9.299e-05,2]
[355978429,1741758632833,-2079.77,9.299e-05,2]
[355978430,1741758632842,-643.87,9.299e-05,2]
[355978431,1741758632851,-1053.88,9.299e-05,2]
[355978432,1741758632861,-500.0,9.299e-05,2]
[355978433,1741758632871,-834.61,9.299e-05,2]
[355978434,1741758632880,-682.64,9.299e-05,2]
[355978435,1741758632889,-554.7,9.299e-05,2]
[355978436,1741758632898,-697.67,9.299e-05,2]
[355978437,1741758632908,-1310.22,9.299e-05,2]
[355978438,1741758632917,-1172.35,9.299e-05,2]
[355978439,1741758632926,-500.0,9.299e-05,2]
[355978440,1741758632935,-566.0,9.299e-05,2]
[355978441,1741758632944,-1400.72,9.299e-05,2]
[355978442,1741758632953,-500.0,9.299e-05,2]
[355978443,1741758632962,-500.0,9.299e-05,2]
[355978444,1741758632971,-500.0,9.299e-05,2]
[355978445,1741758632980,-500.0,9.299e-05,2]
[355978446,1741758632990,-956.59,9.299e-05,2]
[355978447,1741758632999,-1855.36,9.299e-05,2]
[355978448,1741758633008,-500.0,9.299e-05,2]
[355978449,1741758633018,-500.0,9.299e-05,2]
[355978450,1741758633027,-500.0,9.299e-05,2]
[355978451,1741758633036,-2368.63,9.299e-05,2]
[355978452,1741758633046,-742.44,9.299e-05,2]
[355978453,1741758633055,-500.0,9.299e-05,2]
[355978454,1741758633065,-185.51644069,9.299e-05,2]
[355978455,1741758633074,-500.0,9.299e-05,2]
[355978456,1741758633084,-1810.01,9.299e-05,2]
[355978457,1741758633093,-500.0,9.299e-05,2]
[355978458,1741758633102,-500.0,9.299e-05,2]
[355978459,1741758633112,-1557.51,9.299e-05,2]
[355978460,1741758633121,-500.0,9.299e-05,2]
[355978461,1741758633130,-4074.03,9.299e-05,2]
[355978462,1741758633140,-4497.22,9.299e-05,2]
[355978463,1741758633149,-500.0,9.299e-05,2]
[355978464,1741758633158,-1030.38,9.299e-05,2]
[355978465,1741758633168,-885.61,9.299e-05,2]
[355978466,1741758633178,-500.0,9.299e-05,2]
[355978467,1741758633187,-500.0,9.299e-05,2]
[355978468,1741758633197,-524.43,9.299e-05,2]
[355978469,1741758633206,-500.0,9.299e-05,2]
[355978470,1741758633215,-500.0,9.299e-05,2]
[355978471,1741758633224,-572.78,9.299e-05,2]
[355978472,1741758633234,-500.0,9.299e-05,2]
[355978473,1741758633243,-679.81,9.299e-05,2]
[355978474,1741758633252,-500.0,9.299e-05,2]
[355978475,1741758633262,-610.64,9.299e-05,2]
[355978476,1741758633271,-500.0,9.299e-05,2]
[355978477,1741758633281,-764.12,9.299e-05,2]
[355978478,1741758633291,-648.95,9.299e-05,2]
[355978479,1741758633300,-500.0,9.299e-05,2]
[355978480,1741758633310,-882.26,9.299e-05,2]
[355978481,1741758633319,-655.38,9.299e-05,2]
[355978482,1741758633329,-576.22,9.299e-05,2]
[355978483,1741758633339,-500.0,9.299e-05,2]
[355978484,1741758633349,-1834.71,9.299e-05,2]
[355978485,1741758633358,-833.53,9.299e-05,2]
[355978486,1741758633368,-1400.22,9.299e-05,2]
[355978487,1741758633378,-500.0,9.299e-05,2]
[355978488,1741758633388,-1813.34,9.299e-05,2]
[355978489,1741758633397,-1511.15,9.299e-05,2]
[355978490,1741758633406,-500.0,9.299e-05,2]
[355978491,1741758633416,-151.46,9.407e-05,2]
[355978492,1741758633425,-171.12,9.421e-05,2]
[355978493,1741758633438,-151.46,9.52e-05,2]
[355978494,1741758633448,-150.0,9.562e-05,7]
[355978495,1741758633459,-500.0,9.572e-05,2]
[355978496,1741758633469,-504.27517875,9.572e-05,2]
[355978497,1741758633480,-500.0,9.572e-05,2]
[355978498,1741758633490,-500.0,9.572e-05,2]
[355978499,1741758633499,-597.94,9.572e-05,2]
[355978500,1741758633509,-500.0,9.572e-05,2]
[355978501,1741758633520,-500.0,9.572e-05,2]
[355978502,1741758633530,-500.0,9.572e-05,2]
[355978503,1741758633540,-503.2,9.572e-05,2]
[355978504,1741758633549,-180.66,9.572e-05,2]
[355978505,1741758633559,-500.0,9.572e-05,2]
[355978506,1741758633570,-500.0,9.572e-05,2]
[355978507,1741758633580,-500.0,9.572e-05,2]
[355978508,1741758633590,-500.0,9.572e-05,2]
[355978509,1741758633600,-500.0,9.572e-05,2]
[355978510,1741758633610,-500.0,9.572e-05,2]
[355978511,1741758633620,-504.54,9.572e-05,2]
[355978512,1741758633630,-500.0,9.572e-05,2]
[355978513,1741758633639,-1343.48,9.572e-05,2]
[355978514,1741758633649,-500.0,9.572e-05,2]
[355978515,1741758633658,-531.54,9.572e-05,2]
[355978516,1741758633668,-406.12971461,9.572e-05,2]
[355978517,1741758633677,-500.0,9.572e-05,2]
[355978518,1741758633686,-520.75,9.572e-05,2]
[355978519,1741758633696,-500.0,9.572e-05,2]
[355978520,1741758633706,-507.68,9.572e-05,2]
[355978521,1741758633716,-500.0,9.572e-05,2]
[355978522,1741758633725,-500.0,9.572e-05,2]
[355978523,1741758633734,-500.0,9.572e-05,2]
[355978524,1741758633744,-500.0,9.572e-05,2]
[355978525,1741758633754,-500.0,9.572e-05,2]
[355978526,1741758633765,-637.94,9.572e-05,2]
[355978527,1741758633774,-500.0,9.572e-05,2]
[355978528,1741758633783,-500.0,9.572e-05,2]
[355978529,1741758633793,-500.0,9.572e-05,2]
[355978530,1741758633802,-500.0,9.572e-05,2]
[355978531,1741758633812,-336.27607752,9.572e-05,2]
[355978532,1741758633822,-500.0,9.572e-05,2]
[355978533,1741758633831,-581.37,9.572e-05,2]
[355978534,1741758633841,-639.81,9.572e-05,2]
[355978535,1741758633850,-500.0,9.572e-05,2]
[355978536,1741758633860,-549.37,9.572e-05,2]
[355978537,1741758633869,-1062.27,9.572e-05,2]
[355978538,1741758633879,-500.0,9.572e-05,2]
[355978539,1741758633889,-609.77,9.572e-05,2]
[355978540,1741758633898,-500.0,9.572e-05,2]
[355978541,1741758633907,-514.4,9.572e-05,2]
[355978542,1741758633917,-500.0,9.572e-05,2]
[355978543,1741758633926,-1726.1,9.572e-05,2]
[355978544,1741758633936,-846.51,9.572e-05,2]
[355978545,1741758633945,-500.0,9.572e-05,2]
[355978546,1741758633955,-500.0,9.572e-05,2]
[355978547,1741758633964,-2011.7,9.572e-05,2]
[355978548,1741758633974,-500.0,9.572e-05,2]
[355978549,1741758633983,-500.0,9.572e-05,2]
[355978550,1741758633992,-500.0,9.572e-05,2]
[355978551,1741758634001,-678.32,9.572e-05,2]
[355978552,1741758634010,-500.0,9.572e-05,2]
[355978553,1741758634020,-500.0,9.572e-05,2]
[355978554,1741758634029,-500.0,9.572e-05,2]
[355978555,1741758634039,-500.0,9.572e-05,2]
[355978556,1741758634048,-500.0,9.572e-05,2]
[355978557,1741758634058,-500.0,9.572e-05,2]
[355978558,1741758634068,-500.0,9.572e-05,2]
[355978559,1741758634078,-500.0,9.572e-05,2]
[355978560,1741758634088,-532.29,9.572e-05,2]
[355978561,1741758634098,-500.0,9.572e-05,2]
[355978562,1741758634107,-1728.1,9.572e-05,2]
[355978563,1741758634117,-500.0,9.572e-05,2]
[355978564,1741758634126,-1243.85,9.572e-05,2]
[355978565,1741758634136,-574.5,9.572e-05,2]
[355978566,1741758634145,-500.0,9.572e-05,2]
[355978567,1741758634155,-500.0,9.572e-05,2]
[355978568,1741758634164,-835.05,9.572e-05,2]
[355978569,1741758634174,-1275.6,9.572e-05,2]
[355978570,1741758634183,-500.0,9.572e-05,2]
[355978571,1741758634388,-500.0,9.572e-05,2]
[355978572,1741758634415,-500.0,9.572e-05,2]
[355978573,1741758634424,-500.0,9.572e-05,2]
[355978574,1741758634434,-1282.07,9.572e-05,2]
[355978575,1741758634446,-2595.54,9.572e-05,2]
[355978576,1741758634456,-500.0,9.572e-05,2]
[355978577,1741758634466,-600.27,9.572e-05,2]
[355978578,1741758634475,-500.0,9.572e-05,2]
[355978579,1741758634485,-500.0,9.572e-05,2]
[355978580,1741758634495,-1149.32,9.572e-05,2]
[355978581,1741758634504,-729.61,9.572e-05,2]
[355978582,1741758634514,-500.0,9.572e-05,2]
[355978583,1741758634527,-757.8,9.572e-05,2]
[355978584,1741758634537,-500.0,9.572e-05,2]
[355978585,1741758634546,-1012.57,9.572e-05,2]
[355978586,1741758634555,-500.0,9.572e-05,2]
[355978587,1741758634564,-500.0,9.572e-05,2]
[355978588,1741758634574,-3338.66,9.572e-05,2]
[355978589,1741758634584,-763.8,9.572e-05,2]
[355978590,1741758634593,-500.0,9.572e-05,2]
[355978591,1741758634602,-630.35,9.572e-05,2]
[355978592,1741758634612,-500.0,9.572e-05,2]
[355978593,1741758634625,-500.0,9.572e-05,2]
[355978594,1741758634634,-500.0,9.572e-05,2]
[355978595,1741758634644,-1070.83,9.572e-05,2]
[355978596,1741758634653,-500.0,9.572e-05,2]
[355978597,1741758634663,-500.0,9.572e-05,2]
[355978598,1741758634671,-500.0,9.572e-05,2]
[355978599,1741758634680,-500.0,9.572e-05,2]
[355978600,1741758634689,-500.0,9.572e-05,2]
[355978601,1741758634698,-1082.31,9.572e-05,2]
[355978602,1741758634707,-500.0,9.572e-05,2]
[355978603,1741758634716,-925.576335,9.573e-05,2]
[355978604,1741758634725,-558.88582253,9.573e-05,2]
[355978605,1741758634734,-537.09,9.573e-05,2]
[355978606,1741758634744,-656.57,9.573e-05,2]
[355978607,1741758634753,-500.0,9.573e-05,2]
[355978608,1741758634762,-424.81529531,9.573e-05,2]
[355978609,1741758634771,-500.0,9.573e-05,2]
[355978610,1741758634780,-520.44,9.573e-05,2]
[355978611,1741758634789,-585.49,9.573e-05,2]
[355978612,1741758634798,-500.0,9.573e-05,2]
[355978613,1741758634807,-573.03,9.573e-05,2]
[355978614,1741758634815,-500.0,9.573e-05,2]
[355978615,1741758634825,-562.0,9.573e-05,2]
[355978616,1741758634835,-500.0,9.573e-05,2]
[355978617,1741758634843,-673.32,9.573e-05,2]
[355978618,1741758634852,-545.38,9.573e-05,2]
[355978619,1741758634862,-620.25,9.573e-05,2]
[355978620,1741758634871,-500.0,9.573e-05,2]
[355978621,1741758634880,-538.42,9.573e-05,2]
[355978622,1741758634889,-500.0,9.573e-05,2]
[355978623,1741758634899,-500.0,9.573e-05,2]
[355978624,1741758634908,-500.0,9.573e-05,2]